bitfinex/quotes_SOLUSD_20241007
["timestamp","ask_amount","ask_price","bid_price","bid_amount"]
[1728289265893,21.67476734,149.31,149.23,15.9235]
[1728289266100,6.6996,149.27,149.23,15.9235]
[1728289266902,6.6996,149.27,149.23,22.6244]
[1728289269197,21.67479687,149.31,149.23,22.6244]
[1728289269502,6.6991,149.28,149.23,22.6244]
[1728289269674,21.67479687,149.31,149.23,22.6244]
[1728289269876,6.6993,149.27,149.23,22.6244]
[1728289272500,6.6997,149.26,149.23,15.9235]
[1728289272688,6.6993,149.27,149.23,22.6245]
[1728289273179,6.6989,149.28,149.24,6.7003]
[1728289274992,7.00636548,149.33,149.25,17.53422022]
[1728289275195,7.00636548,149.33,149.26,26.35252022]
[1728289275406,16.7385,149.36,149.26,26.35252022]
[1728289276099,6.6976,149.31,149.27,6.6992]
[1728289276799,6.6967,149.33,149.28,6.6984]
[1728289276989,6.6967,149.33,149.29,12.8436]
[1728289279581,8.37157401,149.32,149.29,6.1453]
[1728289279796,6.6978,149.31,149.29,6.1453]
[1728289280282,1.67440896,149.35,149.29,6.1453]
[1728289280283,23.902374,149.35,149.29,6.1453]
[1728289280481,6.6979,149.3,149.29,6.1453]
[1728289282302,43.902374,149.31,149.26,15.3759]
[1728289282504,9.2152,149.34,149.26,15.3759]
[1728289282807,6.6982,149.3,149.26,15.3759]
[1728289283310,6.6982,149.3,149.26,26.35252022]
[1728289285202,20.0,149.36,149.26,26.35252022]
[1728289285411,1.67442076,149.35,149.26,33.05182022]
[1728289285596,6.698,149.3,149.26,33.05182022]
[1728289286813,6.698,149.3,149.26,22.0752]
[1728289286985,6.698,149.3,149.26,15.3759]
[1728289287902,6.6984,149.29,149.26,15.3759]
[1728289291596,1.67461532,149.33,149.26,15.3759]
[1728289291795,16.7429,149.32,149.26,15.3759]
[1728289292011,6.6992,149.27,149.26,15.3759]
[1728289292492,6.6992,149.27,149.24,6.3749]
[1728289292493,16.7452,149.3,149.24,6.3749]
[1728289292692,6.6999,149.26,149.24,6.3749]
[1728289294987,1.67494494,149.29,149.24,6.3749]
[1728289295192,6.7001,149.25,149.24,6.3749]
[1728289298805,6.7009,149.24,149.22,15.5627]
[1728289300402,6.701,149.23,149.22,15.5627]
[1728289300721,1.67519024,149.27,149.22,15.5627]
[1728289300928,6.7007,149.24,149.22,15.5627]
[1728289309508,16.7498,149.26,149.2,6.4202]
[1728289309709,6.7019,149.21,149.2,6.4202]
[1728289310014,6.7028,149.19,149.18,16.3203]
[1728289310225,6.7028,149.19,149.16,6.1227]
[1728289315328,23.902374,149.22,149.16,6.1227]
[1728289315517,6.7033,149.18,149.16,6.1227]
[1728289316502,6.7029,149.19,149.16,6.1227]
[1728289319834,6.7035,149.18,149.16,6.1227]
[1728289321234,6.7021,149.21,149.17,6.7035]
[1728289321417,20.0,149.24,149.17,6.7035]
[1728289321936,6.7016,149.22,149.17,6.7035]
[1728289327417,6.7016,149.22,149.17,15.6376]
[1728289327620,6.7016,149.22,149.18,6.7031]
[1728289327817,6.7011,149.23,149.19,6.7026]
[1728289328715,20.0,149.26,149.18,27.73442022]
[1728289328918,6.7007,149.24,149.2,6.7022]
[1728289329120,6.7007,149.24,149.21,6.5414]
[1728289330241,6.7011,149.23,149.21,6.5414]
[1728289330946,6.7015,149.22,149.21,6.5414]
[1728289331334,16.7502,149.26,149.17,22.172]
[1728289331335,1.67539156,149.25,149.17,22.172]
[1728289331639,6.7029,149.19,149.17,22.172]
[1728289331947,6.7027,149.2,149.17,22.172]
[1728289334243,6.7033,149.18,149.17,22.172]
[1728289335656,21.67586434,149.21,149.13,22.5484]
[1728289335828,16.7565,149.2,149.13,22.5484]
[1728289336031,6.7047,149.15,149.13,22.5484]
[1728289336243,1.67602184,149.19,149.13,22.5484]
[1728289336751,6.7051,149.14,149.13,22.5484]
[1728289338336,6.7047,149.15,149.13,22.5484]
[1728289338649,6.7051,149.14,149.13,22.5484]
[1728289338844,6.705,149.15,149.13,22.5484]
[1728289339051,21.80178055,149.17,149.09,39.3162]
[1728289339228,6.7055,149.13,149.09,39.3162]
[1728289339756,1.67644938,149.16,149.09,39.3162]
[1728289339963,20.12549,149.17,149.09,46.0234]
[1728289340125,6.7052,149.14,149.09,46.0234]
[1728289341254,6.7052,149.14,149.1,6.7068]
[1728289344160,6.7047,149.15,149.1,6.7068]
[1728289347163,6.9984542,149.19,149.13,6.7054]
[1728289347367,16.7554,149.21,149.13,6.7054]
[1728289347368,6.7034,149.18,149.13,6.7054]
[1728289347969,8.38005662,149.17,149.12,6.7059]
[1728289348334,6.7039,149.17,149.12,6.7059]
[1728289351466,6.7039,149.17,149.11,16.7654]
[1728289351761,6.7039,149.17,149.13,6.7054]
[1728289356569,6.7034,149.18,149.13,6.7054]
[1728289356768,6.7038,149.17,149.13,6.7054]
[1728289357066,6.7038,149.17,149.11,16.7654]
[1728289357067,8.37984837,149.17,149.11,16.7654]
[1728289357361,8.38068503,149.16,149.11,16.7654]
[1728289357544,6.7045,149.16,149.11,23.4714]
[1728289358359,6.7045,149.16,149.12,6.7059]
[1728289359086,6.7038,149.17,149.12,6.7059]
[1728289359362,8.38048254,149.16,149.12,6.7059]
[1728289359544,6.7043,149.16,149.12,6.7059]
[1728289363150,43.902374,149.2,149.11,16.7654]
[1728289363358,6.7038,149.17,149.13,6.7055]
[1728289368761,6.7042,149.16,149.12,6.7059]
[1728289379698,20.12549,149.2,149.12,6.7059]
[1728289379857,6.7038,149.17,149.12,6.7059]
[1728289381259,20.12549,149.2,149.14,22.4028]
[1728289381260,20.0,149.2,149.14,22.4028]
[1728289381488,6.7034,149.18,149.14,29.1078]
[1728289382183,6.7034,149.18,149.14,22.4028]
[1728289383666,6.7042,149.16,149.14,22.4028]
[1728289385174,20.0,149.2,149.14,22.4028]
[1728289385487,6.704,149.17,149.14,22.4028]
[1728289387981,1.67584397,149.2,149.14,22.4028]
[1728289387982,6.7046,149.15,149.14,22.4028]
[1728289391469,16.7605,149.16,149.1,22.0115]
[1728289391679,6.7064,149.11,149.1,22.0115]
[1728289398597,6.7064,149.11,149.1,6.3832]
[1728289399504,1.67665354,149.13,149.07,16.0648]
[1728289399791,6.7078,149.08,149.07,16.0648]
[1728289403508,6.7082,149.07,149.06,6.4243]
[1728289403677,1.67719433,149.09,149.03,16.5484]
[1728289404293,6.7094,149.05,149.03,16.5484]
[1728289406192,6.7088,149.06,149.03,16.5484]
[1728289406986,16.7681,149.1,149.03,16.5484]
[1728289407309,6.7083,149.07,149.03,23.2583]
[1728289407603,6.7074,149.09,149.06,6.6399]
[1728289421323,6.7079,149.08,149.06,6.6399]
[1728289427425,23.75957184,149.13,149.06,6.6399]
[1728289427725,6.7076,149.09,149.06,6.6399]
[1728289427925,6.7079,149.08,149.06,6.6399]
[1728289440239,16.7665,149.11,149.03,16.5484]
[1728289440412,6.7088,149.06,149.03,16.5484]
[1728289442535,23.7644594,149.11,149.03,16.5484]
[1728289442536,6.7083,149.07,149.03,23.2584]
[1728289442748,23.7644594,149.11,149.04,0.12549]
[1728289442928,6.7077,149.09,149.04,6.83499]
[1728289448631,6.7078,149.08,149.04,6.83499]
[1728289448849,6.7083,149.07,149.03,40.033]
[1728289452658,6.7078,149.08,149.04,6.83489]
[1728289455257,6.707,149.1,149.06,6.7086]
[1728289455648,6.7065,149.11,149.06,13.2364]
[1728289456051,6.7069,149.1,149.06,13.2364]
[1728289456933,6.7069,149.1,149.06,6.5278]
[1728289457141,6.7076,149.09,149.06,6.5278]
[1728289460265,16.7633,149.14,149.06,6.5278]
[1728289460564,20.0,149.13,149.07,0.12549]
[1728289460733,6.7068,149.11,149.07,0.12549]
[1728289460937,6.7068,149.11,149.07,6.83359]
[1728289461370,6.7061,149.12,149.07,6.83359]
[1728289465061,6.7056,149.13,149.08,22.4153]
[1728289465260,6.7056,149.13,149.08,15.7078]
[1728289466038,6.7056,149.13,149.09,6.7072]
[1728289467147,23.75408551,149.17,149.11,6.6178]
[1728289467148,6.99408551,149.17,149.11,6.6178]
[1728289467353,23.43590726,149.2,149.11,6.6178]
[1728289467354,20.0,149.19,149.11,6.6178]
[1728289467557,6.7042,149.16,149.12,6.7059]
[1728289469044,1.67601231,149.19,149.11,23.3834]
[1728289469873,6.7056,149.13,149.11,6.6178]
[1728289474364,6.705,149.15,149.11,6.6178]
[1728289474671,16.7575,149.19,149.11,6.6178]
[1728289474672,6.7045,149.16,149.11,13.3239]
[1728289475373,6.7047,149.15,149.11,13.3239]
[1728289476551,16.7575,149.19,149.11,13.3239]
[1728289476751,6.7043,149.16,149.12,6.7059]
[1728289481249,6.7043,149.16,149.13,15.1861]
[1728289487460,6.705,149.15,149.13,15.1861]
[1728289492681,6.7051,149.14,149.11,6.6178]
[1728289502588,6.7055,149.13,149.11,6.6178]
[1728289502803,1.67636466,149.16,149.09,16.3345]
[1728289504090,43.902374,149.14,149.07,6.6273]
[1728289504480,6.7072,149.1,149.07,6.6273]
[1728289505373,6.7074,149.09,149.07,6.6273]
[1728289506375,18.44110649,149.13,149.07,6.6273]
[1728289506581,6.7078,149.08,149.04,33.3626]
[1728289506770,6.7087,149.06,149.04,16.5892]
[1728289506994,6.7086,149.07,149.04,16.5892]
[1728289507171,0.12549,149.09,149.03,6.1027]
[1728289507371,6.7091,149.05,149.03,6.1027]
[1728289509087,6.7091,149.05,149.01,16.8907628]
[1728289509306,1.67727142,149.1,149.01,0.1139628]
[1728289509616,6.7096,149.04,149.01,0.1139628]
[1728289513592,6.71,149.03,149.01,0.1139628]
[1728289517683,8.67398581,149.08,149.01,0.1139628]
[1728289517884,6.7105,149.02,149.01,0.1139628]
[1728289524584,52.41638351,149.02,149.01,0.1139628]
[1728289524919,61.63158351,149.02,149.01,0.1139628]
[1728289525410,61.63158351,149.02,149.01,6.28e-05]
[1728289525907,59.953564,149.02,149.01,6.28e-05]
[1728289527400,66.95224542,149.02,149.01,6.28e-05]
[1728289529314,68.63067171,149.02,149.01,6.28e-05]
[1728289530585,70.86697171,149.02,149.01,6.28e-05]
[1728289530913,74.13407452,149.02,149.01,6.28e-05]
[1728289531086,77.54617897,149.02,149.01,6.28e-05]
[1728289539919,75.86775268,149.02,149.01,6.28e-05]
[1728289542805,105.86775268,149.02,149.01,6.28e-05]
[1728289544101,107.54668276,149.02,149.01,6.28e-05]
[1728289549137,103.63145268,149.02,149.01,6.28e-05]
[1728289550129,105.3103775,149.02,149.01,6.28e-05]
[1728289551026,75.3103775,149.02,149.01,6.28e-05]
[1728289553607,75.3103775,149.02,148.91,6.6971]
[1728289553608,6.715,148.92,148.91,6.6971]
[1728289561535,20.0,148.95,148.91,6.6971]
[1728289561734,6.7146,148.93,148.91,6.6971]
[1728289563826,6.715,148.92,148.91,6.6971]
[1728289573143,6.7147,148.93,148.91,6.6971]
[1728289573443,16.7836,148.96,148.91,6.6971]
[1728289573635,6.7142,148.94,148.91,6.6971]
[1728289575241,16.7836,148.96,148.91,6.6971]
[1728289575451,6.7146,148.93,148.91,6.6971]
[1728289583961,6.7141,148.94,148.91,6.6971]
[1728289597565,6.7146,148.93,148.91,6.6971]
[1728289599567,1.67858549,148.98,148.91,6.6971]
[1728289599774,6.7142,148.94,148.91,6.6971]
[1728289602143,6.7136,148.95,148.91,13.4125]
[1728289606060,6.7136,148.95,148.91,6.6971]
[1728289608178,6.7142,148.94,148.91,6.6971]
[1728289614974,1.67842491,148.97,148.91,6.6971]
[1728289615154,6.7146,148.93,148.91,6.6971]
[1728289615360,20.0,148.98,148.91,6.6971]
[1728289615588,6.7142,148.94,148.91,6.6971]
[1728289617875,6.7146,148.93,148.91,6.6971]
[1728289631078,6.715,148.92,148.91,6.6971]
[1728289634277,6.715,148.92,148.91,0.1]
[1728289651019,26.84049,148.92,148.91,0.1]
[1728289651193,26.84049,148.92,148.86,0.8453209]
[1728289651194,6.7172,148.87,148.86,0.8453209]
[1728289652714,26.7172,148.87,148.86,0.8453209]
[1728289655596,26.84269,148.87,148.86,0.8453209]
[1728289656908,6.7195,148.82,148.81,0.1]
[1728289659698,6.7191,148.83,148.81,0.1]
[1728289666405,1.6798313,148.85,148.81,0.1]
[1728289666611,6.7187,148.84,148.81,0.1]
[1728289672616,26.98914806,148.87,148.81,6.8198]
[1728289672938,6.7178,148.86,148.82,6.7194]
[1728289673624,6.7174,148.87,148.82,6.7194]
[1728289674040,6.7177,148.86,148.82,6.7194]
[1728289680622,13.69526305,148.91,148.84,16.4822]
[1728289680826,13.69526305,148.91,148.84,23.2008]
[1728289680827,6.7169,148.88,148.84,23.2008]
[1728289681643,7.01709964,148.93,148.85,17.49390686]
[1728289681833,6.7154,148.92,148.88,6.7167]
[1728289682036,7.01709964,148.93,148.88,17.64680686]
[1728289682037,6.7146,148.93,148.88,17.64680686]
[1728289682341,6.7146,148.93,148.89,15.6073]
[1728289682736,6.715,148.92,148.89,15.6073]
[1728289683751,8.18390064,148.97,148.9,24.20970686]
[1728289684051,6.7128,148.97,148.92,6.7146]
[1728289684223,6.7124,148.98,148.94,15.6073]
[1728289687046,6.7124,148.98,148.94,22.3213]
[1728289688122,6.7124,148.98,148.94,15.6073]
[1728289689547,1.67810196,149.0,148.94,15.6073]
[1728289689849,6.713,148.97,148.94,15.6073]
[1728289691124,6.7123,148.98,148.94,15.6073]
[1728289692445,6.7123,148.98,148.95,6.534]
[1728289695542,6.7119,148.99,148.95,6.534]
[1728289695757,6.7119,148.99,148.95,17.46410686]
[1728289696057,6.7105,149.02,148.97,6.7126]
[1728289696358,6.7105,149.02,148.98,33.02010686]
[1728289697658,6.7101,149.03,148.98,33.02010686]
[1728289698236,6.7101,149.03,149.0,6.528]
[1728289698438,6.7092,149.05,149.0,24.16940686]
[1728289699438,386.5,149.04,149.0,24.16940686]
[1728289699852,386.5,149.03,149.0,24.16940686]
[1728289700745,386.5,149.03,149.0,17.45810686]
[1728289701952,386.5,149.03,149.0,6.528]
[1728289702134,6.7105,149.02,149.0,6.528]
[1728289702339,6.7109,149.01,149.0,6.528]
[1728289703628,1.67768822,149.02,148.98,15.3778]
[1728289703829,6.7118,148.99,148.98,15.3778]
[1728289707570,6.7114,149.0,148.98,15.3778]
[1728289710167,16.7749,149.04,148.98,15.3778]
[1728289710342,6.711,149.01,148.98,15.3778]
[1728289710664,7.01249517,149.06,148.98,15.3778]
[1728289710665,6.7106,149.02,148.98,15.3778]
[1728289710957,27.15040031,149.1,149.01,6.7108]
[1728289711161,16.7678,149.1,149.03,16.4909]
[1728289711367,6.7082,149.07,149.03,16.4909]
[1728289714563,1.67713355,149.09,149.03,16.4909]
[1728289714780,6.7088,149.06,149.03,16.4909]
[1728289715475,6.7096,149.04,149.03,16.4909]
[1728289716142,6.71,149.03,149.0,23.902374]
[1728289716453,6.71,149.03,148.99,28.3011]
[1728289717471,6.71,149.03,148.99,40.42460644]
[1728289717674,6.7097,149.04,148.99,40.42460644]
[1728289719253,6.7102,149.03,148.99,28.3011]
[1728289719462,6.7102,149.03,148.99,21.5894]
[1728289722470,6.7105,149.02,148.99,21.5894]
[1728289734478,1.67758508,149.05,148.95,39.1138]
[1728289734479,6.7114,149.0,148.95,39.1138]
[1728289734683,6.7117,149.0,148.95,45.827]
[1728289735108,1.67786121,149.03,148.95,39.1138]
[1728289735399,6.7123,148.98,148.95,39.1138]
[1728289735908,6.7123,148.99,148.95,39.1138]
[1728289737802,6.7123,148.99,148.96,23.776884]
[1728289740705,16.7744,149.04,148.96,23.776884]
[1728289740886,6.7106,149.02,148.98,30.488984]
[1728289741086,16.7714,149.07,148.99,12.37448644]
[1728289741313,5.48699349,149.1,148.99,12.37448644]
[1728289741314,6.7091,149.05,149.01,6.7109]
[1728289743006,6.7097,149.04,149.0,51.527984]
[1728289745516,6.7097,149.04,149.0,27.7511]
[1728289746910,37.02088,149.08,149.0,21.0397]
[1728289747094,6.7105,149.02,149.0,21.0397]
[1728289748310,6.7109,149.01,148.97,6.7126]
[1728289751412,6.7109,149.01,148.96,38.4151]
[1728289751616,6.7115,149.0,148.96,45.1282]
[1728289752294,6.7115,149.0,148.96,38.4151]
[1728289753918,1.67783097,149.03,148.96,21.6328]
[1728289754117,1.67783097,149.03,148.96,6.4243]
[1728289754118,16.7767,149.02,148.96,6.4243]
[1728289754414,6.7124,148.98,148.94,10.45346997]
[1728289754616,16.7767,149.02,148.94,6.7141]
[1728289754797,6.7123,148.98,148.94,10.45425158]
[1728289755000,6.7123,148.98,148.94,6.7141]
[1728289755520,29.2152,149.03,148.96,0.12549]
[1728289755521,20.0,149.03,148.96,0.12549]
[1728289755826,6.7106,149.02,148.97,6.7125]
[1728289756022,9.2152,149.07,148.98,45.990374]
[1728289756023,6.7104,149.03,148.98,45.990374]
[1728289757522,6.7106,149.02,148.98,45.990374]
[1728289759202,6.7106,149.02,148.99,3.73624021]
[1728289759406,6.7106,149.02,148.98,19.11263787]
[1728289759617,6.711,149.01,148.98,19.11263787]
[1728289759826,6.7114,149.0,148.98,19.11263787]
[1728289760122,6.7114,149.0,148.98,15.3761]
[1728289761328,6.7114,149.0,148.97,6.2793]
[1728289762515,6.7119,148.99,148.97,6.2793]
[1728289763325,18.45222324,149.04,148.97,6.2793]
[1728289763530,6.7119,148.99,148.96,3.73954923]
[1728289763710,6.7119,148.99,148.95,15.1774]
[1728289763899,6.7119,148.99,148.96,3.73966783]
[1728289764106,6.7119,148.99,148.95,15.1774]
[1728289764414,6.7119,148.99,148.96,3.73971756]
[1728289764622,6.7119,148.99,148.95,15.1774]
[1728289764803,6.7119,148.99,148.96,3.74001006]
[1728289765004,6.7119,148.99,148.95,15.1774]
[1728289765303,6.7119,148.99,148.96,3.74008063]
[1728289765503,6.7119,148.99,148.95,15.1774]
[1728289765700,6.7119,148.99,148.96,3.74001818]
[1728289765912,6.7119,148.99,148.95,15.1774]
[1728289766117,6.7119,148.99,148.96,3.73988115]
[1728289766418,6.7119,148.99,148.95,15.1774]
[1728289766627,20.0,149.03,148.96,3.74001913]
[1728289766818,6.7123,148.98,148.95,15.1774]
[1728289767116,6.7123,148.98,148.96,3.74015901]
[1728289767318,6.7123,148.98,148.95,15.1774]
[1728289767517,6.7123,148.98,148.96,3.74011124]
[1728289767707,6.7123,148.98,148.95,15.1774]
[1728289767908,6.7123,148.98,148.96,3.74018914]
[1728289768129,6.7123,148.98,148.95,15.1774]
[1728289768430,6.7123,148.98,148.96,3.74015717]
[1728289768628,6.7123,148.98,148.95,15.1774]
[1728289768933,6.7123,148.98,148.96,3.74015096]
[1728289769105,1.67799549,149.02,148.95,15.1774]
[1728289769308,6.7128,148.97,148.95,15.1774]
[1728289770024,6.7123,148.98,148.95,15.1774]
[1728289770412,20.0,149.01,148.95,15.1774]
[1728289770614,6.7119,148.99,148.95,15.1774]
[1728289771219,6.7114,149.0,148.96,10.45318367]
[1728289771420,6.7114,149.0,148.96,6.7131]
[1728289774329,6.7112,149.01,148.97,23.776884]
[1728289774539,6.7112,149.01,148.97,6.7126]
[1728289784115,6.7112,149.01,148.98,3.73970049]
[1728289784316,6.7112,149.01,148.97,6.7126]
[1728289784517,6.7112,149.01,148.98,3.73966456]
[1728289784856,6.7112,149.01,148.97,6.7126]
[1728289785043,6.7112,149.01,148.98,3.73965178]
[1728289785221,6.7112,149.01,148.97,6.7126]
[1728289785418,6.7112,149.01,148.98,3.74085033]
[1728289785619,6.7112,149.01,148.96,42.61706255]
[1728289785833,6.7112,149.01,148.97,3.74085351]
[1728289786036,6.7112,149.01,148.98,3.74085351]
[1728289786221,6.7112,149.01,148.96,30.489884]
[1728289786422,6.7112,149.01,148.97,3.74100427]
[1728289786611,6.7112,149.01,148.98,3.74100427]
[1728289786816,6.7112,149.01,148.96,30.489884]
[1728289787030,6.7116,149.0,148.97,3.74099436]
[1728289787229,6.7116,149.0,148.96,30.489884]
[1728289787434,6.7116,149.0,148.97,3.74152493]
[1728289787629,6.7116,149.0,148.96,30.489884]
[1728289787941,6.7116,149.0,148.97,3.7415218]
[1728289788148,6.7116,149.0,148.96,30.489884]
[1728289788330,6.7116,149.0,148.97,3.74218795]
[1728289788650,6.7116,149.0,148.96,30.489884]
[1728289788830,6.7116,149.0,148.97,3.7421843]
[1728289789023,6.7116,149.0,148.96,30.489884]
[1728289789327,6.7116,149.0,148.97,3.74211686]
[1728289789525,6.7116,149.0,148.96,30.489884]
[1728289789822,6.7116,149.0,148.97,3.74223427]
[1728289790022,6.7116,149.0,148.96,30.489884]
[1728289790246,6.7116,149.0,148.97,3.74196379]
[1728289790419,6.7116,149.0,148.96,30.489884]
[1728289790743,6.7116,149.0,148.97,3.74208091]
[1728289790915,6.7116,149.0,148.96,30.489884]
[1728289791321,6.7116,149.0,148.97,3.74208266]
[1728289791522,6.7116,149.0,148.96,30.489884]
[1728289791745,6.7116,149.0,148.97,3.74227297]
[1728289791936,6.7116,149.0,148.96,23.776884]
[1728289792119,6.7116,149.0,148.97,3.74270956]
[1728289792319,6.7116,149.0,148.96,23.776884]
[1728289792520,6.7116,149.0,148.97,3.74293186]
[1728289792743,6.7116,149.0,148.96,23.776884]
[1728289792919,6.7116,149.0,148.97,3.74293605]
[1728289793119,6.7116,149.0,148.96,23.776884]
[1728289793340,6.7116,149.0,148.97,3.74276339]
[1728289793639,6.7116,149.0,148.96,23.776884]
[1728289793845,6.7116,149.0,148.97,3.74271145]
[1728289794023,6.7116,149.0,148.96,23.776884]
[1728289794439,6.7116,149.0,148.97,3.74267534]
[1728289794649,6.7116,149.0,148.96,23.776884]
[1728289794820,6.7116,149.0,148.97,3.74250634]
[1728289795021,6.7116,149.0,148.96,23.776884]
[1728289795227,6.7116,149.0,148.97,3.74250787]
[1728289795427,6.7116,149.0,148.96,23.776884]
[1728289795633,6.7116,149.0,148.97,3.74255831]
[1728289795943,6.7116,149.0,148.96,23.776884]
[1728289796146,6.7116,149.0,148.97,3.74255342]
[1728289796353,6.7116,149.0,148.96,23.776884]
[1728289796547,6.7116,149.0,148.97,3.74255011]
[1728289796734,6.7116,149.0,148.96,23.776884]
[1728289797056,6.7116,149.0,148.97,3.7425518]
[1728289797232,6.7123,148.99,148.96,23.776884]
[1728289797440,6.7123,148.98,148.97,3.74255534]
[1728289801227,6.7123,148.98,148.97,3.74343698]
[1728289801428,1.67796957,149.0,148.93,6.4896]
[1728289801647,1.67796957,149.0,148.94,3.74546467]
[1728289801847,1.67796957,149.0,148.95,3.74546467]
[1728289802052,16.7801,148.99,148.93,6.4896]
[1728289802250,6.714,148.95,148.94,3.74535474]
[1728289802758,6.7142,148.94,148.91,15.6308]
[1728289802955,6.7142,148.94,148.92,3.74556896]
[1728289803141,6.7137,148.95,148.93,3.74556896]
[1728289803458,6.7137,148.95,148.94,3.74556896]
[1728289804358,6.7137,148.95,148.92,3.74556896]
[1728289804548,6.7137,148.95,148.93,3.74556896]
[1728289804743,6.7137,148.95,148.91,22.3461]
[1728289804947,6.7137,148.95,148.92,3.74141213]
[1728289805262,6.7137,148.95,148.93,3.74141213]
[1728289805438,6.7137,148.95,148.94,3.74141213]
[1728289805641,6.7137,148.95,148.92,3.74141213]
[1728289805937,6.7137,148.95,148.93,3.74141213]
[1728289806131,6.7137,148.95,148.94,3.74141213]
[1728289806332,6.7137,148.95,148.92,3.74141213]
[1728289806560,6.7137,148.95,148.91,22.3461]
[1728289806734,6.7137,148.95,148.93,3.74102274]
[1728289806934,6.7137,148.95,148.94,3.7408086]
[1728289807136,6.7129,148.97,148.94,3.7408086]
[1728289807383,23.79324856,149.02,148.94,6.5805]
[1728289807662,6.7115,149.0,148.96,15.24579]
[1728289807861,6.7115,149.0,148.97,3.73798458]
[1728289808067,6.7115,149.0,148.96,15.24579]
[1728289808661,6.7115,149.0,148.97,3.73810275]
[1728289808863,23.78863302,149.05,148.97,3.73810275]
[1728289809160,16.7758,149.03,148.96,18.85919386]
[1728289809328,1.67793167,149.02,148.96,15.1203]
[1728289810761,6.7132,148.96,148.94,6.5805]
[1728289811055,6.7132,148.96,148.92,16.1383]
[1728289811260,6.7137,148.95,148.93,3.73972034]
[1728289811437,6.7137,148.95,148.94,3.73972034]
[1728289812168,6.7137,148.95,148.94,3.73937359]
[1728289812336,6.7137,148.95,148.93,3.73937359]
[1728289812655,6.7137,148.95,148.92,16.1383]
[1728289812857,6.7137,148.95,148.93,3.73952377]
[1728289813031,6.7137,148.95,148.92,16.1383]
[1728289813237,6.7137,148.95,148.93,3.7395476]
[1728289813441,6.7137,148.95,148.92,16.1383]
[1728289813742,6.7137,148.95,148.93,3.73918285]
[1728289814076,6.7133,148.96,148.92,16.1383]
[1728289814230,6.7133,148.96,148.93,3.73918052]
[1728289814430,6.7133,148.96,148.92,16.1383]
[1728289814639,6.7133,148.96,148.93,3.7388302]
[1728289814847,6.7133,148.96,148.92,16.1383]
[1728289815073,6.7133,148.96,148.93,3.73884696]
[1728289815235,6.7133,148.96,148.92,16.1383]
[1728289815436,6.7133,148.96,148.93,3.7384614]
[1728289815758,6.7133,148.96,148.94,3.73844103]
[1728289815947,6.7133,148.96,148.93,3.73844103]
[1728289816148,6.7133,148.96,148.92,22.8531]
[1728289816149,6.7133,148.96,148.94,3.73844103]
[1728289816369,6.7133,148.96,148.93,3.73844103]
[1728289816659,6.7133,148.96,148.92,22.8531]
[1728289816860,6.7133,148.96,148.93,3.73820427]
[1728289817157,6.7133,148.96,148.92,22.8531]
[1728289817567,6.7133,148.96,148.93,3.73874222]
[1728289817870,6.7133,148.96,148.92,22.8531]
[1728289818163,6.7133,148.96,148.93,3.73863396]
[1728289818338,6.7133,148.96,148.92,22.8531]
[1728289818672,6.7133,148.96,148.93,3.73837119]
[1728289818841,6.7133,148.96,148.92,22.8531]
[1728289819041,6.7133,148.96,148.93,3.73809477]
[1728289819240,6.7126,148.98,148.93,30.616774]
[1728289819444,6.7126,148.98,148.94,3.73766558]
[1728289819749,6.7126,148.98,148.94,10.45156558]
[1728289819939,6.7119,148.99,148.94,10.45156558]
[1728289820137,6.7119,148.99,148.95,3.73766558]
[1728289820936,6.7123,148.98,148.95,3.73725096]
[1728289825477,6.7123,148.98,148.94,6.7139]
[1728289825651,6.7123,148.98,148.95,3.73752726]
[1728289826281,6.7123,148.98,148.94,6.7139]
[1728289826445,6.7123,148.98,148.95,3.73726439]